fUST/lending_fUST_20241013
["ID","MTS","AMOUNT","RATE_DAILY","PERIOD"]
[340171164,1728752839324,-156.0,0.0004238,2]
[340171165,1728752839347,-165.0,0.00043,90]
[340171166,1728752839369,-376.0,0.00043,90]
[340171167,1728752839391,-201.0,0.00043,90]
[340171168,1728752839411,-180.55696541,0.00043,90]
[340171172,1728752968104,-1521.93944335,0.00037329,120]
[340171173,1728752968127,-800.0,0.00039099,120]
[340171236,1728753038712,-156.0,0.000405,7]
[340171237,1728753038723,-156.0,0.0004135,2]
[340171238,1728753038734,-302.87886359,0.00042571,10]
[340171239,1728753038746,-156.0,0.0004275,5]
[340171240,1728753038755,-376.0,0.00043014,90]
[340171241,1728753038765,-376.0,0.00043288,90]
[340171242,1728753038774,-540.0834566,0.00043299,2]
[340171243,1728753038786,-150.0,0.000434,2]
[340171244,1728753038799,-376.0,0.00043562,90]
[340171245,1728753038808,-376.0,0.00043836,90]
[340171246,1728753038818,-550.0,0.00043932,5]
[340171247,1728753038828,-500.0,0.00043933,10]
[340171248,1728753038837,-191.0,0.00044,90]
[340171249,1728753038847,-191.0,0.0004411,90]
[340171250,1728753038858,-150.0,0.000444,2]
[340171251,1728753038869,-322.0,0.000446,30]
[340171252,1728753038878,-130.58429858,0.0004477,120]
[340171283,1728753040088,-25.41570142,0.0004477,120]
[340171284,1728753040099,-165.0,0.00044877,90]
[340171285,1728753040110,-376.0,0.00044877,90]
[340171286,1728753040121,-201.0,0.00044877,90]
[340171287,1728753040133,-129.94765768,0.000449,28]
[340171288,1728753040144,-4530.22554214,0.000449,28]
[340171289,1728753040153,-500.0,0.0004495,10]
[340171290,1728753040165,-500.0,0.0004495,10]
[340171292,1728753040177,-500.0,0.0004495,2]
[340171295,1728753040193,-291.0,0.00045,2]
[340171297,1728753040208,-483.21437333,0.00045,120]
[340171299,1728753040222,-152.89332927,0.00045,120]
[340171300,1728753040236,-5000.0,0.00045,14]
[340171301,1728753040248,-166.0,0.00045,15]
[340171302,1728753040259,-745.69125031,0.00045085,2]
[340171303,1728753040273,-297.247128,0.00045105,120]
[340171304,1728753040287,-1000.0,0.00045303,10]
[340171305,1728753040299,-150.0,0.000454,2]
[340171306,1728753040312,-191.0,0.00046027,90]
[340171307,1728753040326,-1000.0,0.0004632,10]
[340171308,1728753040338,-1000.0,0.0004632,10]
[340171309,1728753040351,-150.0,0.000464,2]
[340171310,1728753040365,-770.0,0.00046669,5]
[340171311,1728753040379,-2031.30929256,0.00046876,2]
[340171312,1728753040393,-2031.30929256,0.00046932,2]
[340171313,1728753040407,-493.02,0.00046966,30]
[340171314,1728753040422,-4686.5,0.00046966,10]
[340171315,1728753040435,-3905.42,0.00046966,10]
[340171316,1728753040448,-223.43482714,0.00046966,60]
[340171317,1728753040461,-500.0,0.00046973,7]
[340171318,1728753040475,-550.69115665,0.00046973,10]
[340171319,1728753040488,-500.0,0.00046973,10]
[340171320,1728753040500,-500.0,0.00046973,10]
[340171321,1728753040512,-500.0,0.00046973,10]
[340171322,1728753040524,-224.75422911,0.00046975,31]
[340171323,1728753040535,-500.0,0.00046975,120]
[340171324,1728753040549,-500.0,0.00046975,120]
[340171325,1728753040562,-500.0,0.00046975,120]
[340171326,1728753040575,-500.0,0.00046975,120]
[340171327,1728753040588,-248.30000006,0.00046975,120]
[340171328,1728753040600,-500.0,0.00046975,120]
[340171329,1728753040613,-500.0,0.00046975,120]
[340171330,1728753040628,-294.9734072,0.00046975,120]
[340171331,1728753040641,-500.0,0.00046975,120]
[340171332,1728753040655,-500.0,0.00046975,120]
[340171333,1728753040667,-500.0,0.00046975,120]
[340171334,1728753040678,-500.0,0.00046975,120]
[340171335,1728753040689,-500.0,0.00046975,120]
[340171336,1728753040699,-379.37075804,0.00046975,120]
[340171337,1728753040714,-212.29644527,0.00046975,120]
[340171338,1728753040726,-181.58891328,0.00046975,120]
[340171339,1728753040739,-1000.0,0.00046976,2]
[340171340,1728753040753,-1000.0,0.00046976,2]
[340171341,1728753040765,-1000.0,0.00046976,2]
[340171342,1728753040776,-1000.0,0.00046976,2]
[340171343,1728753040791,-1000.0,0.00046976,2]
[340171344,1728753040802,-650.05099701,0.00046976,2]
[340171345,1728753040815,-88711.1900691,0.00046976,7]
[340171346,1728753040827,-31991.57781498,0.00046976,7]
[340171347,1728753040841,-5585.05999391,0.00046976,7]
[340171348,1728753040858,-5029.2288601,0.00046976,7]
[340171360,1728753089294,166.53746441,0.00032877,2]
[340171361,1728753089721,291.98738598,0.00034849,120]
[340171372,1728753596831,215.85310535,0.00026575,19]
[340171376,1728753656847,215.85310535,0.00024001,2]
[340171446,1728754036147,-205.07016738,0.00035,2]
[340171447,1728754038313,-97.35528475,0.00035,2]
[340171448,1728754038337,-129.33332681,0.0003535,2]
[340171452,1728754150124,-173.09212532,0.0003535,2]
[340171453,1728754150147,-302.42545213,0.000357,2]
[340171454,1728754150168,-365.52822387,0.0003605,2]
[340171455,1728754150191,-169.909089,0.00037185,2]
[340171456,1728754150228,-411.21416146,0.00037488,2]
[340171457,1728754150252,-400.0,0.00037489,2]
[340171458,1728754150276,-400.0,0.00037489,2]
[340171459,1728754150299,-3227.67904929,0.0003749,2]
[340171461,1728754174096,-3326.9215573,0.0003749,2]
[340171506,1728754232101,-400.0,0.00037489,2]
[340171508,1728754232111,-1112.42683922,0.0003749,2]
[340171513,1728754232161,-433.90707799,0.0003749,2]
[340171515,1728754232174,-760.904,0.0003749,2]
[340171521,1728754232223,-3568.6141599,0.0003749,2]
[340171523,1728754232233,-267.522415,0.0004,2]
[340171525,1728754232243,-1946.30346839,0.0004,30]
[340171527,1728754232254,-560.0,0.00040092,5]
[340171529,1728754232264,-169.909089,0.00040122,2]
[340171532,1728754232276,-157.0,0.000408,2]
[340171534,1728754232287,-291.0,0.00041,2]
[340171536,1728754232298,-2009.969999,0.00041,7]
[340171538,1728754232309,-2970.07465771,0.00041302,10]
[340171541,1728754232322,-385.7801351,0.00041302,10]
[340171594,1728754240557,-1330.64520719,0.00041302,10]
[340171595,1728754240568,-403.03,0.00041302,30]
[340171596,1728754240579,-4776.96,0.00041302,10]
[340171597,1728754240589,-212.29644527,0.00041311,31]
[340171598,1728754240598,-181.58891328,0.00041311,31]
[340171599,1728754240608,-224.75422911,0.00041311,31]
[340171600,1728754240618,-500.0,0.00041311,31]
[340171601,1728754240628,-500.0,0.00041311,31]
[340171602,1728754240638,-500.0,0.00041311,31]
[340171603,1728754240648,-500.0,0.00041311,31]
[340171604,1728754240658,-500.0,0.00041311,31]
[340171605,1728754240668,-407.40151248,0.00041311,31]
[340171606,1728754240679,-500.0,0.00041311,31]
[340171607,1728754240691,-500.0,0.00041311,31]
[340171608,1728754240702,-500.0,0.00041311,31]
[340171609,1728754240714,-294.9734072,0.00041311,31]
[340171610,1728754240726,-500.0,0.00041311,31]
[340171611,1728754240738,-500.0,0.00041311,31]
[340171612,1728754240749,-500.0,0.00041311,31]
[340171613,1728754240761,-379.37075804,0.00041311,31]
[340171614,1728754240771,-500.0,0.00041311,31]
[340171615,1728754240781,-10183.15180208,0.00041312,26]
[340171616,1728754240792,-293.5685223,0.00041312,30]
[340171617,1728754240802,-4122.97279095,0.00041312,61]
[340171618,1728754240811,-1685.0,0.00041312,10]
[340171619,1728754240821,-1001.7272058,0.00041312,2]
[340171620,1728754240831,-1051.1820951,0.00041312,2]
[340171621,1728754240843,-342.24917294,0.00041312,2]
[340171622,1728754240853,-1216.51804919,0.00041312,2]
[340171623,1728754240863,-143239.70323242,0.00041312,20]
[340171624,1728754240877,-5585.05999391,0.00041312,20]
[340171625,1728754240891,-5029.2288601,0.00041312,20]
[340171669,1728755232137,-164.76418972,0.00032877,2]
[340171670,1728755232160,-288.07071889,0.00034849,120]
[340171671,1728755232187,-259.39526125,0.00037771,2]
[340171673,1728755249108,-44.41111325,0.00037771,2]
[340171674,1728755249130,-200.42948546,0.0004,2]
[340171739,1728755440413,-84.20107954,0.0004,2]
[340171740,1728755440423,-157.0,0.000408,2]
[340171741,1728755440433,-255.4640463,0.00041202,2]
[340171742,1728755440443,-467.0,0.00041208,30]
[340171743,1728755440453,-550.0,0.00041208,5]
[340171744,1728755440463,-5028.90752034,0.00041209,28]
[340171745,1728755440473,-165.369,0.0004121,60]
[340171746,1728755440482,-2031.30929256,0.0004121,2]
[340171747,1728755440492,-291.0,0.00041212,2]
[340171748,1728755440502,-23927.70851715,0.00041212,2]
[340171749,1728755440511,-293.5685223,0.00041212,30]
[340171750,1728755440520,-224.75422911,0.00041299,31]
[340171751,1728755440530,-500.0,0.00041299,31]
[340171753,1728755440539,-500.0,0.00041299,31]
[340171754,1728755440548,-500.0,0.00041299,31]
[340171755,1728755440558,-500.0,0.00041299,31]
[340171756,1728755440567,-510.76995552,0.00041299,31]
[340171757,1728755440577,-500.0,0.00041299,31]
[340171758,1728755440586,-500.0,0.00041299,31]
[340171759,1728755440596,-632.40151248,0.00041299,31]
[340171760,1728755440606,-500.0,0.00041299,31]
[340171762,1728755440617,-500.0,0.00041299,31]
[340171763,1728755440626,-562.03227253,0.00041299,31]
[340171764,1728755440636,-294.9734072,0.00041299,31]
[340171765,1728755440644,-500.0,0.00041299,31]
[340171766,1728755440654,-500.0,0.00041299,31]
[340171767,1728755440663,-500.0,0.00041299,31]
[340171768,1728755440672,-500.0,0.00041299,31]
[340171769,1728755440682,-395.08486757,0.00041299,31]
[340171770,1728755440691,-500.0,0.00041299,31]
[340171771,1728755440700,-500.0,0.00041299,31]
[340171772,1728755440709,-500.0,0.00041299,31]
[340171773,1728755440718,-1000.89,0.000413,30]
[340171774,1728755440728,-834.07,0.000413,30]
[340171775,1728755440737,-695.06,0.000413,30]
[340171776,1728755440748,-579.22,0.000413,30]
[340171777,1728755440757,-579.22,0.000413,30]
[340171778,1728755440766,-386.15,0.000413,30]
[340171779,1728755440775,-321.79,0.000413,30]
[340171780,1728755440785,-268.16,0.000413,30]
[340171781,1728755440794,-223.46,0.000413,30]
[340171782,1728755440804,-186.22,0.000413,30]
[340171783,1728755440813,-155.18,0.000413,30]
[340171784,1728755440823,-1818.83807371,0.000413,10]
[340171785,1728755440835,-3716.95192629,0.000413,10]
[340171786,1728755440844,-384.65122125,0.00041309,31]
[340171787,1728755440855,-280.83259658,0.00041309,31]
[340171788,1728755440864,-342.45861809,0.00041309,31]
[340171789,1728755440873,-151.0,0.00041309,7]
[340171790,1728755440883,-10183.15180208,0.0004131,26]
[340171791,1728755440892,-4122.97279095,0.0004131,61]
[340171792,1728755440902,-164733.77709883,0.0004131,20]
[340171817,1728755482049,169.909089,0.00036617,2]
[340171830,1728756427170,-169.909089,0.00037199,2]
[340171831,1728756427193,-278.809804,0.00037265,2]
[340171832,1728756427215,-305.142019,0.0004,2]
[340171833,1728756427236,-157.0,0.000408,2]
[340171834,1728756427257,-427.72149065,0.00040841,120]
[340171835,1728756430120,-72.27850935,0.00040841,120]
[340171836,1728756430145,-1231.30531436,0.0004088,2]
[340171837,1728756431083,-863.07989324,0.0004088,2]
[340171838,1728756431104,-550.0,0.00040991,30]
[340171839,1728756431126,-550.0,0.00040991,5]
[340171840,1728756431147,-500.0,0.00041,4]
[340171841,1728756431169,-768.45079838,0.00041,10]
[340171842,1728756434173,-2918.38742267,0.00041,10]
[340171849,1728756632577,-157.0,0.000408,2]
[340171850,1728756632587,-4535.27553456,0.00041,10]
[340171851,1728756632597,-550.0,0.00041049,30]
[340171852,1728756632607,-550.0,0.00041049,5]
[340171853,1728756632618,-500.0,0.0004105,31]
[340171854,1728756632627,-500.0,0.0004105,31]
[340171855,1728756632638,-348.54924273,0.0004105,31]
[340171856,1728756632651,-500.0,0.0004105,31]
[340171857,1728756632660,-500.0,0.0004105,31]
[340171858,1728756632669,-291.63096936,0.0004105,31]
[340171859,1728756632679,-456.20322725,0.0004105,31]
[340171860,1728756632693,-195.71234819,0.00041051,30]
[340171861,1728756632702,-14600.23551236,0.00041051,51]
[340171871,1728756638987,-2382.67585133,0.00041051,51]
[340171872,1728756639001,-16043.03846294,0.00041051,51]
[340171873,1728756639013,-480.02913384,0.00041051,51]
[340171881,1728756640652,-17424.46427191,0.00041051,51]
[340171882,1728756640665,-181.432,0.00041051,60]
[340171883,1728756640677,-500.0,0.00041073,5]
[340171884,1728756640690,-500.0,0.00041206,120]
[340171885,1728756640701,-500.0,0.00041206,120]
[340171886,1728756640713,-446.0,0.00041206,120]
[340171887,1728756640723,-649.23,0.00041301,30]
[340171888,1728756640733,-541.03,0.00041301,30]
[340171889,1728756640742,-450.86,0.00041301,30]
[340171890,1728756640752,-384.65122125,0.0004131,31]
[340171891,1728756640761,-342.45861809,0.0004131,31]
[340171892,1728756640771,-280.83259658,0.0004131,31]
[340171893,1728756640781,-1000.0,0.0004131,120]
[340171894,1728756640790,-1000.0,0.0004131,2]
[340171895,1728756640800,-1000.0,0.0004131,2]
[340171896,1728756640809,-1000.0,0.0004131,2]
[340171897,1728756640819,-1000.0,0.0004131,2]
[340171898,1728756640829,-1000.0,0.0004131,2]
[340171899,1728756640838,-650.05099701,0.0004131,2]
[340171900,1728756640848,-93567.6252507,0.00041311,20]
[340171901,1728756640858,-294.30033699,0.00041311,3]
[340171902,1728756640867,-558.92035194,0.00041311,2]
[340171903,1728756640877,-500.0,0.00041311,30]
[340171904,1728756640887,-1685.0,0.00041311,10]
[340171905,1728756640896,-1000.0,0.00041312,30]
[340171906,1728756640906,-1000.0,0.00041584,120]
[340171907,1728756640915,-1000.0,0.00041858,120]
[340171908,1728756640924,-4019.54650495,0.00041969,6]
[340171909,1728756640934,-12058.6395148,0.0004197,6]
[340171910,1728756640944,-500.0,0.00041973,10]
[340171911,1728756640955,-617.53415103,0.00041973,10]
[340171912,1728756640966,-151.0,0.0004198,120]
[340171913,1728756640977,-151.0,0.0004198,120]
[340171914,1728756640987,-151.0,0.0004198,120]
[340171915,1728756640996,-151.0,0.0004198,120]
[340171916,1728756641006,-151.0,0.0004198,120]
[340171917,1728756641016,-188.677116,0.0004198,120]
[340171918,1728756641025,-188.677116,0.0004198,120]
[340171919,1728756641037,-151.0,0.0004198,120]
[340171920,1728756641051,-151.0,0.0004198,120]
[340171921,1728756641061,-152.395837,0.0004198,120]
[340171922,1728756641070,-151.0,0.0004198,60]
[340171923,1728756641079,-151.0,0.0004198,120]
[340171924,1728756641089,-151.0,0.0004198,120]
[340171925,1728756641099,-153.291625,0.0004198,120]
[340171926,1728756641110,-151.0,0.0004198,3]
[340171927,1728756641120,-1570.344184,0.0004198,120]
[340171928,1728756641131,-151.0,0.0004198,120]
[340171929,1728756641140,-1570.344184,0.0004198,120]
[340171930,1728756641150,-4019.54650495,0.0004199,6]
[340171931,1728756641162,-1000.0,0.00042,10]
[340171932,1728756641172,-1000.0,0.00042,10]
[340171933,1728756641183,-1000.0,0.00042,10]
[340171934,1728756641193,-1000.0,0.00042,10]
[340171935,1728756641203,-1000.0,0.00042,10]
[340171936,1728756641212,-1000.0,0.00042,10]
[340171937,1728756641222,-1000.0,0.00042,10]
[340171938,1728756641233,-1000.0,0.00042,10]
[340171939,1728756641242,-1000.0,0.00042,10]
[340171940,1728756641251,-1000.0,0.00042,10]
[340171941,1728756641261,-1000.0,0.00042,10]
[340171942,1728756641271,-1000.0,0.00042,10]
[340171943,1728756641281,-1000.0,0.00042,10]
[340171944,1728756641292,-150.112233,0.00042,6]
[340171945,1728756641303,-500.0,0.00042105,10]
[340171946,1728756641313,-1000.0,0.00042132,120]
[340171947,1728756641325,-150.112233,0.000422,6]
[340171948,1728756641334,-800.0,0.00042278,120]
[340171949,1728756641343,-224.999996,0.000423,5]
[340171950,1728756641352,-157.0,0.0004234,7]
[340171951,1728756641362,-150.112233,0.000424,8]
[340171952,1728756641374,-1000.0,0.00042406,120]
[340171953,1728756641386,-500.0,0.00042442,10]
[340171954,1728756641395,-10183.15180208,0.000426,26]
[340171955,1728756641406,-151.0,0.000426,120]
[340171956,1728756641415,-291.45323,0.000426,120]
[340171957,1728756641494,-151.0,0.000426,120]
[340171958,1728756641504,-151.0,0.000426,120]
[340171959,1728756641514,-151.0,0.000426,120]
[340171960,1728756641524,-151.0,0.000426,2]
[340171961,1728756641534,-649.71823794,0.00042621,61]
[340171986,1728756667562,221.088491,0.00037769,2]
[340171987,1728756671957,3554.52590908,0.00038071,2]
[340171988,1728756676063,3430.0,0.00037399,2]
[340171989,1728756694892,800.0,0.000369,120]
[340171990,1728756847286,934.8980624,0.0001,2]
[340171993,1728757208561,890.00111083,0.00020161,2]
[340171994,1728757209703,486.25005554,0.00021169,2]
[340171995,1728757210865,466.06250278,0.00022227,2]
[340171996,1728757211979,465.05312514,0.00023339,2]
[340172006,1728757628163,-166.666666,0.00026495,2]
[340172007,1728757628186,-446.3337943,0.00027135,4]
[340172008,1728757628211,-250.0,0.00027214,2]
[340172009,1728757628240,-250.0,0.00027289,2]
[340172010,1728757628269,-250.0,0.00027364,2]
[340172011,1728757628295,-250.0,0.00027438,2]
[340172012,1728757628320,-250.0,0.00027513,2]
[340172013,1728757628344,-250.0,0.00027588,2]
[340172014,1728757628366,-250.0,0.00027662,2]
[340172015,1728757628389,-250.0,0.00027737,2]
[340172016,1728757628413,-232.37140598,0.00027782,2]
[340172017,1728757631155,-977.87887762,0.00027782,2]
[340172018,1728757637096,-286.6169154,0.00027782,2]
[340172019,1728757637120,-99.53615377,0.00027811,2]
[340172020,1728757653113,-150.46384623,0.00027811,2]
[340172021,1728757653137,-250.0,0.00027886,2]
[340172022,1728757653162,-1163.5396383,0.00027907,2]
[340172023,1728757653185,-250.0,0.00027961,2]
[340172024,1728757653213,-250.0,0.00028035,2]
[340172025,1728757653235,-300.0,0.00028048,2]
[340172026,1728757653258,-300.0,0.00028049,2]
[340172027,1728757653286,-857.00562845,0.0002805,2]
[340172028,1728757697275,185.37252252,0.000123,2]
[340172030,1728757710792,1239.10235904,0.000134,2]
[340172031,1728757721897,1126.2,0.00016,30]
[340172034,1728757746143,-2009.969999,0.0002657,2]
[340172035,1728757746166,-3075.4242313,0.00027156,2]
[340172036,1728757746188,-705.0489502,0.00027212,2]
[340172037,1728757746211,-2999.999999,0.0002799,2]
[340172038,1728757746318,-300.0,0.00028049,2]
[340172039,1728757746344,-300.0,0.00028049,2]
[340172040,1728757746367,-2142.99437155,0.0002805,2]
[340172041,1728757746389,-250.0,0.0002811,2]
[340172042,1728757746412,-250.0,0.00028185,2]
[340172043,1728757746434,-630.1006055,0.00028231,2]
[340172044,1728757746458,-250.0,0.00028259,2]
[340172045,1728757746481,-250.0,0.00028334,2]
[340172046,1728757746504,-250.0,0.00028408,2]
[340172047,1728757746525,-226.24030447,0.00028465,2]
[340172048,1728757746548,-1496.867199,0.00028467,2]
[340172049,1728757746572,-250.0,0.00028483,2]
[340172050,1728757746596,-250.0,0.00028558,2]
[340172051,1728757746618,-250.0,0.00028632,2]
[340172052,1728757746641,-4507.58078698,0.00029,2]
[340172053,1728757751139,-16609.17511648,0.00029,2]
[340172054,1728757751164,-8503.88877648,0.00029052,2]
[340172055,1728757751188,-1496.867199,0.00029152,2]
[340172056,1728757751213,-309.95661643,0.00029152,2]
[340172057,1728757751236,-500.0,0.000296,5]
[340172058,1728757751257,-1000.94858904,0.00029899,2]
[340172059,1728757751277,-437.0,0.0003,2]
[340172060,1728757751304,-420.0,0.00030292,2]
[340172061,1728757751327,-420.0,0.00030854,2]
[340172062,1728757751350,-699.63021317,0.0003097,5]
[340172063,1728757754166,-302.14507097,0.0003097,5]
[340172064,1728757754191,-500.0,0.00031221,2]
[340172065,1728757754216,-500.0,0.00031221,2]
[340172066,1728757754237,-500.0,0.00031221,2]
[340172067,1728757754259,-500.0,0.00031221,2]
[340172068,1728757754282,-500.0,0.00031221,2]
[340172069,1728757754307,-373.15787598,0.00031221,2]
[340172070,1728757754330,-489.90016805,0.00031221,2]
[340172071,1728757754351,-500.0,0.00031221,2]
[340172072,1728757754374,-500.0,0.00031221,2]
[340172073,1728757754396,-500.0,0.00031221,2]
[340172074,1728757754417,-500.0,0.00031221,2]
[340172075,1728757754440,-500.0,0.00031221,2]
[340172076,1728757754461,-500.0,0.00031221,2]
[340172077,1728757754481,-500.0,0.00031221,2]
[340172078,1728757754504,-500.0,0.00031221,2]
[340172079,1728757754524,-500.0,0.00031221,2]
[340172080,1728757754546,-500.0,0.00031221,2]
[340172081,1728757754568,-500.0,0.00031221,2]
[340172082,1728757754591,-500.0,0.00031221,2]
[340172083,1728757754612,-500.0,0.00031221,2]
[340172084,1728757754634,-500.0,0.00031221,2]
[340172085,1728757754655,-500.0,0.00031221,2]
[340172086,1728757754678,-500.0,0.00031221,2]
[340172087,1728757754700,-500.0,0.00031221,2]
[340172088,1728757754721,-500.0,0.00031221,2]
[340172089,1728757754745,-500.0,0.00031221,2]
[340172090,1728757754769,-500.0,0.00031221,2]
[340172091,1728757754794,-500.0,0.00031221,2]
[340172092,1728757754818,-500.0,0.00031221,2]
[340172093,1728757754842,-500.0,0.00031221,2]
[340172094,1728757754935,-500.0,0.00031221,2]
[340172095,1728757754960,-500.0,0.00031221,2]
[340172096,1728757754984,-449.67380466,0.00031221,2]
[340172097,1728757755008,-500.0,0.00031221,2]
[340172098,1728757755029,-500.0,0.00031221,2]
[340172099,1728757755052,-500.0,0.00031221,2]
[340172100,1728757755078,-500.0,0.00031221,2]
[340172101,1728757755104,-500.0,0.00031221,2]
[340172102,1728757755128,-500.0,0.00031221,2]
[340172103,1728757755154,-500.0,0.00031221,2]
[340172104,1728757755176,-500.0,0.00031221,2]
[340172105,1728757755199,-500.0,0.00031221,2]
[340172106,1728757755221,-500.0,0.00031221,2]
[340172107,1728757755242,-500.0,0.00031221,2]
[340172108,1728757755263,-500.0,0.00031221,2]
[340172109,1728757755285,-500.0,0.00031221,2]
[340172110,1728757755312,-500.0,0.00031221,2]
[340172111,1728757755335,-266.90319839,0.00031221,2]
[340172112,1728757755356,-11488.195204,0.00031223,2]
[340172113,1728757755378,-250.0,0.00031947,2]
[340172114,1728757755399,-800.834855,0.00031947,2]
[340172115,1728757755419,-151.07445443,0.00032958,5]
[340172116,1728757755440,-15800.94103647,0.00033,2]
[340172117,1728757755461,-500.0,0.00033003,5]
[340172118,1728757755482,-500.0,0.00033164,5]
[340172119,1728757755503,-500.0,0.00033164,2]
[340172120,1728757755523,-587.0,0.0003394,2]
[340172121,1728757755545,-161.858407,0.0003398,2]
[340172122,1728757755567,-1805.44850995,0.00034125,2]
[340172123,1728757755588,-572.6,0.00034153,3]
[340172124,1728757755610,-381.71,0.00034164,3]
[340172125,1728757755632,-190.85,0.00034164,3]
[340172126,1728757755655,-280.83259658,0.00034173,7]
[340172127,1728757755680,-384.65122125,0.00034173,7]
[340172128,1728757755703,-342.45861809,0.00034173,7]
[340172129,1728757755724,-500.0,0.00034173,5]
[340172130,1728757755745,-500.0,0.00034173,5]
[340172131,1728757755766,-500.0,0.00034173,5]
[340172132,1728757755798,-501.41483387,0.00034173,5]
[340172133,1728757755829,-502.20763861,0.00034173,5]
[340172134,1728757755858,-617.53415103,0.00034173,5]
[340172135,1728757755888,-500.0,0.00034173,5]
[340172136,1728757755920,-88714.8237726,0.00034174,5]
[340172137,1728757755955,-4049.84594611,0.00034174,5]
[340172138,1728757755983,-593.76,0.00034174,3]
[340172139,1728757756011,-24900.0,0.00034184,2]
[340172140,1728757756044,-20605.28588531,0.00034216,5]
[340172141,1728757757161,-34032.42024546,0.00034216,5]
[340172142,1728757757210,-13192.46545698,0.00034216,5]
[340172143,1728757757244,-109599.47595725,0.00034216,5]
[340172144,1728757757273,-6722.64744695,0.00034216,5]
[340172146,1728757763141,-1377.04444527,0.00034216,5]
[340172147,1728757763169,-218.0,0.00034226,2]
[340172148,1728757763197,-151.0,0.00034226,14]
[340172149,1728757763222,-151.0,0.00034226,14]
[340172150,1728757763250,-151.0,0.00034226,14]
[340172151,1728757763276,-151.0,0.00034226,14]
[340172152,1728757763304,-151.0,0.00034226,14]
[340172153,1728757763334,-156.652751,0.00034226,14]
[340172154,1728757763363,-151.0,0.00034226,14]
[340172155,1728757763393,-151.0,0.00034226,14]
[340172156,1728757763422,-151.0,0.00034226,14]
[340172157,1728757763450,-151.0,0.00034226,14]
[340172158,1728757763479,-151.0,0.00034226,14]
[340172159,1728757763501,-151.0,0.00034226,14]
[340172160,1728757763624,-151.0,0.00034226,14]
[340172161,1728757763651,-151.0,0.00034226,14]
[340172162,1728757763674,-229.79693286,0.00034226,14]
[340172163,1728757763703,-151.0,0.00034226,14]
[340172164,1728757763725,-151.0,0.00034226,14]
[340172165,1728757763744,-291.45323,0.00034226,14]
[340172166,1728757763764,-188.677116,0.00034226,14]
[340172167,1728757763783,-188.677116,0.00034226,14]
[340172168,1728757763803,-188.677116,0.00034226,14]
[340172169,1728757763823,-188.677116,0.00034226,14]
[340172170,1728757763843,-1000.0,0.00034226,2]
[340172171,1728757763862,-1000.0,0.00034226,2]
[340172172,1728757763883,-1000.0,0.00034226,2]
[340172173,1728757763903,-1000.0,0.00034226,2]
[340172174,1728757763923,-1000.0,0.00034226,2]
[340172175,1728757763942,-650.05099701,0.00034226,2]
[340172176,1728757763963,-151.0,0.00034226,14]
[340172177,1728757763982,-151.0,0.00034226,14]
[340172178,1728757764003,-151.0,0.00034226,14]
[340172179,1728757764024,-151.0,0.00034226,14]
[340172180,1728757764046,-1570.344184,0.00034226,14]
[340172181,1728757764069,-1570.344184,0.00034226,14]
[340172182,1728757764093,-1570.344184,0.00034226,14]
[340172183,1728757764115,-1570.344184,0.00034226,14]
[340172184,1728757764135,-151.0,0.00034226,14]
[340172185,1728757764154,-151.0,0.00034226,14]